[Event "Polish Youth G18 Championship 2023"]
[Site "Jastrzebia Gora"]
[Date "2023.03.16"]
[Round "6.12"]
[White "Gornisiewicz, Natalia"]
[Black "Bialek, Alicja"]
[Result "0-1"]
[ECO "A04"]
[WhiteElo "1287"]
[BlackElo "1576"]
[Annotator "NA RC COMBH"]
[PlyCount "146"]
[EventDate "2023.03.11"]
[EventType "swiss"]
[EventCountry "POL"]
[SourceTitle "playchess.com"]
[Source "ChessBase"]
[SourceQuality "1"]
[TimeControl "40/5400+30:1800+30"]

1. Nf3 {[%emt 0:00:05]} b6 {[%emt 0:00:11]} 2. g3 {[%emt 0:00:12]} Bb7 {[%emt 0:00:02]} 3. Bg2 {[%emt 0:00:12]} g6 {[%emt 0:00:07]} 4. O-O {[%emt 0:00:21]} Bg7 {[%emt 0:00:06]} 5. d4 {[%emt 0:00:24]} Nf6 {[%emt 0:01:40]} 6. c4 {[%emt 0:00:56]} O-O {[%emt 0:01:45]} 7. Nbd2 {[%emt 0:02:18]} d6 {[%emt 0:08:17]} 8. b3 {[%emt 0:03:13]} c5 {[%emt 0:05:34]} 9. Bb2 {[%emt 0:02:08]} cxd4 {[%emt 0:07:06]} 10. Nxd4 {[%emt 0:02:02]} Bxg2 {[%emt 0:00:44]} 11. Kxg2 {[%emt 0:00:08]} Qc8 {[%emt 0:11:41]} 12. Qc2 {[%emt 0:06:12]} Nbd7 {[%emt 0:03:26]} 13. N4f3 {[%emt 0:07:37]} Qb7 {[%emt 0:10:18]} 14. h4 {[%emt 0:08:13]} h5 {[%emt 0:02:11]} 15. Rg1 {[%emt 0:05:18]} Rac8 {[%emt 0:02:44]} 16. Rac1 {[%emt 0:04:40]} Nc5 {[%emt 0:18:38]} 17. Kf1 {[%emt 0:04:42]} e5 {[%emt 0:04:07]} 18. Ng5 {[%emt 0:03:35]} Rfe8 {[%emt 0:01:28]} 19. b4 {[%emt 0:02:27]} Ne6 {[%emt 0:05:35]} 20. Nde4 {[%emt 0:03:17]} Nxe4 {[%emt 0:08:23]} 21. Qxe4 {[%emt 0:04:58]} Qe7 {[%emt 0:01:26]} 22. Nxe6 {[%emt 0:00:59]} Qxe6 {[%emt 0:00:02]} 23. Kg2 {[%emt 0:00:56]} b5 {[%emt 0:02:45]} 24. cxb5 {[%emt 0:04:27]} Qxa2 {[%emt 0:01:07]} 25. Qb1 {[%emt 0:02:47]} Qd5+ {[%emt 0:00:42]} 26. e4 {[%emt 0:00:51]} Qxb5 {[%emt 0:00:02]} 27. Ba1 {[%emt 0:04:09]} d5 {[%emt 0:02:01]} 28. exd5 {[%emt 0:01:34]} Qxd5+ {[%emt 0:00:01]} 29. Kh2 {[%emt 0:00:08]} Qd2 {[%emt 0:01:34]} 30. Qb2 {[%emt 0:01:01]} Qd6 {[%emt 0:00:48]} 31. Rgd1 {[%emt 0:00:48]} Qe6 {[%emt 0:00:53]} 32. Re1 {[%emt 0:03:18]} Rxc1 {[%emt 0:00:24]} 33. Qxc1 {[%emt 0:01:01]} Qb6 {[%emt 0:00:11]} 34. Qb2 {[%emt 0:02:09]} f6 {[%emt 0:00:22]} 35. Kg2 {[%emt 0:00:39]} Rb8 {[%emt 0:00:27]} 36. Rc1 {[%emt 0:01:41]} Kh7 {[%emt 0:00:36]} 37. Qa3 {[%emt 0:02:25]} Bf8 {[%emt 0:00:33]} 38. Bc3 {[%emt 0:00:10]} Rc8 {[%emt 0:00:41]} 39. Bd2 {[%emt 0:01:04]} Rd8 {[%emt 0:00:46]} 40. Be3 {[%emt 0:00:00]} Qb7+ {[%emt 0:00:00]} 41. Kh2 {[%emt 0:01:31]} Rd7 {[%emt 0:10:47]} 42. Ra1 {[%emt 0:03:35]} Bxb4 {[%emt 0:04:34]} 43. Qxa7 Qxa7 {[%emt 0:02:13]} 44. Bxa7 {[%emt 0:01:07]} Bc3 {[%emt 0:00:17]} 45. Ra6 {[%emt 0:03:59]} Bd4 {[%emt 0:01:22]} 46. Bb8 {[%emt 0:00:22]} Kg7 {[%emt 0:13:07]} 47. Kg2 {[%emt 0:01:19]} Rb7 {[%emt 0:00:44]} 48. Bd6 {[%emt 0:00:41]} Rb2 {[%emt 0:00:13]} 49. Rc6 {[%emt 0:01:54]} Rxf2+ {[%emt 0:00:45]} 50. Kh3 {[%emt 0:02:46]} Kf7 {[%emt 0:01:15]} 51. Ra6 {[%emt 0:01:00]} Rc2 {[%emt 0:00:39]} 52. Ra8 {[%emt 0:02:21]} Ke6 {[%emt 0:00:29]} 53. Ra6 {[%emt 0:00:07]} Kf5 {[%emt 0:00:13]} 54. Be7 {[%emt 0:00:23]} e4 {[%emt 0:00:29]} 55. Rd6 {[%emt 0:03:31]} Be5 {[%emt 0:00:37]} 56. Rd1 {[%emt 0:00:40]} Rc3 {[%emt 0:00:37]} 57. Rg1 {[%emt 0:00:15]} Ke6 {[%emt 0:00:41]} 58. Bb4 {[%emt 0:00:37]} Rf3 {[%emt 0:00:20]} 59. Be1 {[%emt 0:00:38]} f5 {[%emt 0:00:20]} 60. Kg2 {[%emt 0:00:26]} f4 {[%emt 0:00:49]} 61. gxf4 {[%emt 0:01:07]} Bxf4 {[%emt 0:00:24]} 62. Bf2 {[%emt 0:00:14]} Rd3 {[%emt 0:00:36]} 63. Re1 {[%emt 0:00:44]} Kf5 {[%emt 0:00:08]} 64. Re2 {[%emt 0:00:42]} e3 {[%emt 0:00:35]} 65. Be1 {[%emt 0:00:26]} Kg4 {[%emt 0:00:35]} 66. Kf1 {[%emt 0:00:31]} Rd1 {[%emt 0:00:41]} 67. Rg2+ {[%emt 0:00:46]} Kf3 {[%emt 0:00:19]} 68. Rf2+ {[%emt 0:00:13]} Ke4 {[%emt 0:00:25]} 69. Rg2 {[%emt 0:00:30]} Kd3 {[%emt 0:00:46]} 70. Rxg6 {[%emt 0:00:47]} e2+ {[%emt 0:00:04]} 71. Kf2 {[%emt 0:00:09]} Be3+ {[%emt 0:00:10]} 72. Kf3 {[%emt 0:00:29]} Rxe1 {[%emt 0:00:13]} 73. Rd6+ {[%emt 0:00:12]} Bd4 {[%emt 0:00:05]} 0-1

[Event "Polish Youth G18 Championship 2023"]
[Site "Jastrzebia Gora"]
[Date "2023.03.16"]
[Round "6.13"]
[White "Krzyzosiak, Anna"]
[Black "Bartoszek, Julia"]
[Result "1-0"]
[ECO "B98"]
[WhiteElo "1503"]
[BlackElo "1344"]
[Annotator "NA RC COMBH"]
[PlyCount "65"]
[EventDate "2023.03.11"]
[EventType "swiss"]
[EventCountry "POL"]
[SourceTitle "playchess.com"]
[Source "ChessBase"]
[SourceQuality "1"]
[TimeControl "40/5400+30:1800+30"]

1. e4 {[%emt 0:00:02]} c5 {[%emt 0:00:11]} 2. Nf3 {[%emt 0:00:06]} d6 {[%emt 0:00:08]} 3. d4 {[%emt 0:00:08]} cxd4 {[%emt 0:00:06]} 4. Nxd4 {[%emt 0:00:04]} Nf6 {[%emt 0:00:11]} 5. Nc3 {[%emt 0:00:07]} a6 {[%emt 0:00:10]} 6. Bg5 {[%emt 0:00:10]} e6 {[%emt 0:00:21]} 7. f4 {[%emt 0:00:15]} Be7 {[%emt 0:00:18]} 8. Qe2 {[%emt 0:00:22]} h6 {[%emt 0:02:06]} 9. Bh4 {[%emt 0:02:02]} Qc7 {[%emt 0:07:55]} 10. O-O-O {[%emt 0:06:29]} Nbd7 {[%emt 0:05:08]} 11. g4 {[%emt 0:03:25]} b5 {[%emt 0:12:53]} 12. Bg2 {[%emt 0:09:32]} Bb7 {[%emt 0:01:57]} 13. e5 {[%emt 0:08:00]} dxe5 {[%emt 0:01:01]} 14. fxe5 {[%emt 0:01:19]} Ng8 {[%emt 0:02:51]} 15. Bxe7 {[%emt 0:08:45]} Nxe7 {[%emt 0:00:23]} 16. Ndxb5 {[%emt 0:05:02]} axb5 {[%emt 0:03:12]} 17. Nxb5 {[%emt 0:00:10]} Qb6 {[%emt 0:02:52]} 18. Nd6+ {[%emt 0:13:43]} Kf8 {[%emt 0:00:50]} 19. Nxb7 {[%emt 0:07:19]} Rxa2 {[%emt 0:04:14]} 20. c3 {[%emt 0:05:04]} Qb3 {[%emt 0:05:00]} 21. Rxd7 {[%emt 0:22:33]} Ra1+ {[%emt 0:01:05]} 22. Kd2 {[%emt 0:00:04]} Qxb2+ {[%emt 0:01:13]} 23. Ke3 {[%emt 0:00:27]} Qb6+ {[%emt 0:03:46]} 24. Kf3 {[%emt 0:04:56]} Ra8 {[%emt 0:01:22]} 25. Kg3 {[%emt 0:00:45]} Rc8 {[%emt 0:01:27]} 26. Qd3 {[%emt 0:01:15]} g6 {[%emt 0:01:40]} 27. Rf1 {[%emt 0:00:42]} Qb3 {[%emt 0:02:25]} 28. Nd6 {[%emt 0:00:54]} Rh7 {[%emt 0:05:57]} 29. Nxc8 {[%emt 0:00:16]} Nxc8 {[%emt 0:00:49]} 30. Rd8+ {[%emt 0:00:12]} Kg7 {[%emt 0:00:08]} 31. Rxf7+ {[%emt 0:00:50]} Kxf7 {[%emt 0:00:15]} 32. Qd7+ {[%emt 0:00:05]} Ne7 {[%emt 0:00:34]} 33. Qe8+ {[%emt 0:00:05]} 1-0

[Event "Polish Youth G18 Championship 2023"]
[Site "Jastrzebia Gora"]
[Date "2023.03.16"]
[Round "6.14"]
[White "Anyz, Monika"]
[Black "Szczotka, Matylda"]
[Result "1/2-1/2"]
[ECO "C22"]
[WhiteElo "1755"]
[BlackElo "1451"]
[Annotator "NA RC COMBH"]
[PlyCount "84"]
[EventDate "2023.03.11"]
[EventType "swiss"]
[EventCountry "POL"]
[SourceTitle "playchess.com"]
[Source "ChessBase"]
[SourceQuality "1"]
[TimeControl "40/5400+30:1800+30"]

1. e4 {[%emt 0:00:02]} e5 {[%emt 0:00:05]} 2. d4 {[%emt 0:00:05]} exd4 {[%emt 0:00:05]} 3. Qxd4 {[%emt 0:00:06]} Nc6 {[%emt 0:00:06]} 4. Qe3 {[%emt 0:00:09]} Nf6 {[%emt 0:00:53]} 5. Nc3 {[%emt 0:00:11]} d6 {[%emt 0:00:41]} 6. Bc4 {[%emt 0:01:31]} Be6 {[%emt 0:09:30]} 7. Bd3 {[%emt 0:08:03]} Qe7 {[%emt 0:06:47]} 8. Bd2 {[%emt 0:10:12]} g6 {[%emt 0:09:31]} 9. O-O-O {[%emt 0:05:05]} Bg7 {[%emt 0:03:00]} 10. f4 {[%emt 0:03:51]} O-O-O {[%emt 0:09:16]} 11. Nf3 {[%emt 0:16:23]} Kb8 {[%emt 0:06:30]} 12. Nb5 {[%emt 0:07:09]} Ng4 {[%emt 0:13:09]} 13. Qg1 {[%emt 0:01:54]} a6 {[%emt 0:08:07]} 14. Nbd4 {[%emt 0:01:29]} Nxd4 {[%emt 0:01:10]} 15. Nxd4 {[%emt 0:00:08]} c5 {[%emt 0:05:43]} 16. Nxe6 {[%emt 0:08:28]} Qxe6 {[%emt 0:00:31]} 17. c3 {[%emt 0:03:14]} Qxa2 {[%emt 0:04:41]} 18. h3 {[%emt 0:02:00]} Nf6 {[%emt 0:01:46]} 19. Re1 {[%emt 0:06:58]} Nd7 {[%emt 0:04:00]} 20. Kc2 {[%emt 0:07:33]} c4 {[%emt 0:04:11]} 21. Be2 {[%emt 0:00:09]} Qa4+ {[%emt 0:02:51]} 22. Kb1 {[%emt 0:00:50]} Nc5 {[%emt 0:01:02]} 23. Bd1 {[%emt 0:03:24]} Nb3 {[%emt 0:03:04]} 24. Re2 {[%emt 0:02:31]} Rc8 {[%emt 0:03:23]} 25. Qb6 {[%emt 0:01:10]} Qa1+ {[%emt 0:01:03]} 26. Kc2 {[%emt 0:00:22]} Rc6 {[%emt 0:00:46]} 27. Qb4 {[%emt 0:00:43]} Bf8 {[%emt 0:01:25]} 28. Qa3 {[%emt 0:00:55]} Qxa3 {[%emt 0:00:29]} 29. bxa3 {[%emt 0:00:06]} Bh6 {[%emt 0:00:40]} 30. g3 {[%emt 0:01:03]} Rd8 {[%emt 0:00:16]} 31. Kb2 {[%emt 0:01:25]} Nc5 {[%emt 0:00:28]} 32. Bc2 {[%emt 0:00:35]} Bg7 {[%emt 0:00:25]} 33. Rhe1 {[%emt 0:01:12]} Rdc8 {[%emt 0:00:17]} 34. Re3 {[%emt 0:00:53]} a5 {[%emt 0:00:33]} 35. a4 {[%emt 0:01:04]} Rb6+ {[%emt 0:00:40]} 36. Ka2 {[%emt 0:00:44]} Rd8 {[%emt 0:00:33]} 37. g4 {[%emt 0:01:55]} Ka8 {[%emt 0:00:46]} 38. f5 {[%emt 0:01:06]} Nd7 {[%emt 0:00:31]} 39. fxg6 {[%emt 0:00:51]} hxg6 {[%emt 0:00:16]} 40. Rf1 {[%emt 0:00:00]} Ne5 {[%emt 0:00:00]} 41. Rd1 {[%emt 0:03:02]} Rh8 {[%emt 0:02:20]} 42. Rg3 {[%emt 0:03:41]} Bf8 1/2-1/2

[Event "Polish Youth G18 Championship 2023"]
[Site "Jastrzebia Gora"]
[Date "2023.03.16"]
[Round "6.15"]
[White "Dallemura, Anna"]
[Black "Samol, Julia"]
[Result "0-1"]
[ECO "B44"]
[WhiteElo "1496"]
[BlackElo "1374"]
[Annotator "NA RC COMBH"]
[PlyCount "75"]
[EventDate "2023.03.11"]
[EventType "swiss"]
[EventCountry "POL"]
[SourceTitle "playchess.com"]
[Source "ChessBase"]
[SourceQuality "1"]
[TimeControl "40/5400+30:1800+30"]

1. e4 c5 2. Nf3 e6 3. d4 cxd4 4. Nxd4 Nc6 5. a3 a6 6. Nc3 Qc7 7. Be2 Nf6 8. O-O Be7 9. Kh1 O-O 10. f4 d6 11. Nf3 b5 12. Qe1 Bb7 13. Qg3 Na5 14. Bd3 Nc4 15. f5 e5 16. Bh6 Ne8 17. Nh4 Bf6 18. Bc1 Rc8 19. Qh3 Qa5 20. g4 Nxb2 21. Bxb2 Rxc3 22. Bxc3 Qxc3 23. Nf3 d5 24. Rae1 Nd6 25. exd5 Bxd5 26. Be2 Ne4 27. Rd1 Nd2 28. Rf2 Qxc2 29. Kg1 Bxf3 30. Bxf3 Nxf3+ 31. Qxf3 Qc5 32. Kh1 e4 33. Qg2 e3 34. Re2 Qxa3 35. g5 Qa4 36. Rg1 Be5 37. g6 h6 38. gxf7+ 0-1

[Event "Polish Youth G18 Championship 2023"]
[Site "Jastrzebia Gora"]
[Date "2023.03.16"]
[Round "6.16"]
[White "Olszewska, Wiktoria"]
[Black "Trybus, Dominika"]
[Result "1/2-1/2"]
[ECO "B12"]
[WhiteElo "1287"]
[BlackElo "1543"]
[Annotator "NA RC COMBH"]
[PlyCount "62"]
[EventDate "2023.03.11"]
[EventType "swiss"]
[EventCountry "POL"]
[SourceTitle "playchess.com"]
[Source "ChessBase"]
[SourceQuality "1"]
[TimeControl "40/5400+30:1800+30"]

1. e4 {[%emt 0:00:02]} c6 {[%emt 0:00:04]} 2. d4 {[%emt 0:00:28]} d5 {[%emt 0:00:08]} 3. e5 {[%emt 0:00:17]} Bf5 {[%emt 0:00:09]} 4. h4 {[%emt 0:02:23]} h6 {[%emt 0:00:05]} 5. c4 {[%emt 0:09:36]} dxc4 {[%emt 0:04:57]} 6. Bxc4 {[%emt 0:00:26]} e6 {[%emt 0:00:08]} 7. Nc3 {[%emt 0:04:15]} Bb4 {[%emt 0:02:53]} 8. Nge2 {[%emt 0:03:43]} Ne7 {[%emt 0:05:22]} 9. a3 {[%emt 0:16:21]} Ba5 {[%emt 0:00:52]} 10. b4 {[%emt 0:08:54]} Bb6 {[%emt 0:00:56]} 11. Bb2 {[%emt 0:01:23]} a5 {[%emt 0:14:03]} 12. O-O {[%emt 0:08:10]} O-O {[%emt 0:04:30]} 13. Qd2 {[%emt 0:07:58]} Na6 {[%emt 0:05:34]} 14. b5 {[%emt 0:03:11]} Nc7 {[%emt 0:02:08]} 15. a4 {[%emt 0:03:24]} Ng6 {[%emt 0:09:41]} 16. h5 {[%emt 0:07:13]} Nxe5 {[%emt 0:00:22]} 17. Bb3 {[%emt 0:02:42]} Nd7 {[%emt 0:02:48]} 18. Ng3 {[%emt 0:07:14]} Bh7 {[%emt 0:01:54]} 19. bxc6 {[%emt 0:01:31]} bxc6 {[%emt 0:00:20]} 20. Nce4 {[%emt 0:00:56]} Qh4 {[%emt 0:14:38]} 21. Rfe1 {[%emt 0:06:22]} Nd5 {[%emt 0:06:11]} 22. Rac1 {[%emt 0:01:50]} Rac8 {[%emt 0:01:54]} 23. Ba3 {[%emt 0:01:35]} Rfd8 {[%emt 0:06:06]} 24. Rcd1 {[%emt 0:01:53]} N7f6 {[%emt 0:02:36]} 25. Nxf6+ {[%emt 0:00:12]} Nxf6 {[%emt 0:01:02]} 26. Qe2 {[%emt 0:00:51]} Bxd4 {[%emt 0:02:46]} 27. Qf3 {[%emt 0:00:34]} Ng4 {[%emt 0:02:17]} 28. Re2 {[%emt 0:00:35]} Ne5 {[%emt 0:01:16]} 29. Rxe5 {[%emt 0:00:28]} Bxe5 {[%emt 0:00:22]} 30. Rxd8+ {[%emt 0:00:22]} Rxd8 {[%emt 0:01:35]} 31. Bd1 {[%emt 0:00:40]} Bxg3 {[%emt 0:00:40]} 1/2-1/2

[Event "Polish Youth G18 Championship 2023"]
[Site "Jastrzebia Gora"]
[Date "2023.03.16"]
[Round "6.17"]
[White "Pietrzak, Emilia"]
[Black "Pietruszka, Julia"]
[Result "1-0"]
[ECO "C41"]
[WhiteElo "1424"]
[BlackElo "1151"]
[Annotator "NA RC COMBH"]
[PlyCount "45"]
[EventDate "2023.03.11"]
[EventType "swiss"]
[EventCountry "POL"]
[SourceTitle "playchess.com"]
[Source "ChessBase"]
[SourceQuality "1"]
[TimeControl "40/5400+30:1800+30"]

1. e4 d6 2. d4 Nf6 3. Nc3 e5 4. Nf3 Nbd7 5. Bc4 Nb6 6. Bb3 Be7 7. dxe5 dxe5 8. Qxd8+ Bxd8 9. Nxe5 O-O 10. Be3 Nbd7 11. Nxd7 Bxd7 12. f3 Re8 13. O-O-O Be7 14. e5 Rad8 15. exf6 Bxf6 16. Rhe1 Rxe3 17. Rxe3 Bg5 18. Rdd3 Re8 19. Ne4 Bxe3+ 20. Rxe3 Kf8 21. Kd2 Rd8 22. Rd3 Ke7 23. Nc5 1-0

[Event "Polish Youth G18 Championship 2023"]
[Site "Jastrzebia Gora"]
[Date "2023.03.16"]
[Round "6.18"]
[White "Tittor, Weronika"]
[Black "Kaznowska, Kinga"]
[Result "0-1"]
[ECO "D00"]
[WhiteElo "1226"]
[BlackElo "1352"]
[Annotator "NA RC COMBH"]
[PlyCount "62"]
[EventDate "2023.03.11"]
[EventType "swiss"]
[EventCountry "POL"]
[SourceTitle "playchess.com"]
[Source "ChessBase"]
[SourceQuality "1"]
[TimeControl "40/5400+30:1800+30"]

1. d4 {[%emt 0:00:02]} d5 {[%emt 0:00:04]} 2. Bf4 {[%emt 0:02:35]} e6 {[%emt 0:01:28]} 3. Nf3 {[%emt 0:02:39]} c5 {[%emt 0:00:43]} 4. e3 {[%emt 0:02:22]} Nc6 {[%emt 0:00:17]} 5. c3 {[%emt 0:02:42]} Nf6 {[%emt 0:01:10]} 6. Bd3 {[%emt 0:02:29]} c4 {[%emt 0:00:18]} 7. Bc2 {[%emt 0:02:19]} Bd6 {[%emt 0:00:37]} 8. Bg3 {[%emt 0:02:29]} O-O {[%emt 0:00:28]} 9. Nbd2 {[%emt 0:02:32]} b5 {[%emt 0:00:46]} 10. Ne5 {[%emt 0:04:51]} Bb7 {[%emt 0:01:21]} 11. b3 {[%emt 0:06:29]} Qc7 {[%emt 0:03:21]} 12. f4 {[%emt 0:02:07]} h6 {[%emt 0:06:00]} 13. O-O {[%emt 0:01:39]} a5 {[%emt 0:04:15]} 14. Bh4 {[%emt 0:04:03]} Bxe5 {[%emt 0:00:52]} 15. fxe5 {[%emt 0:00:33]} Nh7 {[%emt 0:01:06]} 16. Qg4 {[%emt 0:02:36]} Kh8 {[%emt 0:01:26]} 17. Rf3 {[%emt 0:03:19]} Rg8 {[%emt 0:07:23]} 18. Raf1 {[%emt 0:01:42]} Raf8 {[%emt 0:00:37]} 19. Qh5 {[%emt 0:01:53]} f5 {[%emt 0:15:12]} 20. exf6 {[%emt 0:00:34]} g5 {[%emt 0:03:59]} 21. Bg3 {[%emt 0:02:24]} Qf7 {[%emt 0:00:54]} 22. Qxh6 {[%emt 0:01:01]} Rd8 {[%emt 0:03:03]} 23. Be5 {[%emt 0:07:09]} Nxe5 {[%emt 0:01:00]} 24. dxe5 {[%emt 0:00:11]} d4 {[%emt 0:00:10]} 25. Rh3 {[%emt 0:00:33]} d3 {[%emt 0:00:33]} 26. Bd1 {[%emt 0:00:49]} Rg6 {[%emt 0:07:11]} 27. Qh5 {[%emt 0:01:17]} cxb3 {[%emt 0:07:49]} 28. Bxb3 {[%emt 0:00:46]} g4 {[%emt 0:04:58]} 29. Bxe6 {[%emt 0:00:59]} gxh3 {[%emt 0:00:49]} 30. g3 {[%emt 0:01:29]} Rxg3+ {[%emt 0:03:10]} 31. hxg3 {[%emt 0:01:01]} Qxh5 {[%emt 0:00:07]} 0-1

[Event "Polish Youth G18 Championship 2023"]
[Site "Jastrzebia Gora"]
[Date "2023.03.16"]
[Round "6.19"]
[White "Sivickis, Kornelia"]
[Black "Bauer, Marika"]
[Result "1-0"]
[ECO "C70"]
[WhiteElo "1328"]
[BlackElo "1183"]
[Annotator "NA RC COMBH"]
[PlyCount "107"]
[EventDate "2023.03.11"]
[EventType "swiss"]
[EventCountry "POL"]
[SourceTitle "playchess.com"]
[Source "ChessBase"]
[SourceQuality "1"]
[TimeControl "40/5400+30:1800+30"]

1. e4 {[%emt 0:00:03]} e5 {[%emt 0:00:06]} 2. Nf3 {[%emt 0:00:09]} Nc6 {[%emt 0:00:04]} 3. Bb5 {[%emt 0:00:14]} a6 {[%emt 0:00:25]} 4. Ba4 {[%emt 0:00:08]} b5 {[%emt 0:00:14]} 5. Bb3 {[%emt 0:00:08]} Nf6 {[%emt 0:00:21]} 6. O-O {[%emt 0:00:12]} Bc5 {[%emt 0:02:51]} 7. c3 {[%emt 0:00:29]} Bb6 {[%emt 0:04:36]} 8. d4 {[%emt 0:02:00]} exd4 {[%emt 0:02:37]} 9. cxd4 {[%emt 0:01:04]} d5 {[%emt 0:03:42]} 10. e5 {[%emt 0:02:02]} Ne4 {[%emt 0:01:30]} 11. Nc3 {[%emt 0:02:19]} Nxc3 {[%emt 0:01:49]} 12. bxc3 {[%emt 0:00:11]} Bg4 {[%emt 0:01:49]} 13. h3 {[%emt 0:00:40]} Bh5 {[%emt 0:00:19]} 14. Re1 {[%emt 0:01:02]} Qd7 {[%emt 0:02:53]} 15. Be3 {[%emt 0:02:51]} O-O {[%emt 0:01:47]} 16. a4 {[%emt 0:04:23]} Na5 {[%emt 0:03:44]} 17. axb5 {[%emt 0:10:11]} Bxf3 {[%emt 0:02:23]} 18. gxf3 {[%emt 0:00:49]} Nxb3 {[%emt 0:02:08]} 19. Qxb3 {[%emt 0:00:43]} axb5 {[%emt 0:00:26]} 20. Kh2 {[%emt 0:00:22]} c6 {[%emt 0:01:18]} 21. Rad1 {[%emt 0:01:59]} f6 {[%emt 0:00:40]} 22. f4 {[%emt 0:08:33]} fxe5 {[%emt 0:00:51]} 23. dxe5 {[%emt 0:01:29]} Bxe3 {[%emt 0:01:03]} 24. fxe3 {[%emt 0:00:17]} Qa7 {[%emt 0:03:36]} 25. Ra1 {[%emt 0:06:37]} Qc5 {[%emt 0:00:10]} 26. Qb4 {[%emt 0:18:27]} Qxb4 {[%emt 0:02:02]} 27. cxb4 {[%emt 0:00:02]} Ra4 {[%emt 0:00:19]} 28. Rxa4 {[%emt 0:00:23]} bxa4 {[%emt 0:00:03]} 29. Ra1 {[%emt 0:00:08]} Ra8 {[%emt 0:00:10]} 30. Ra3 {[%emt 0:00:12]} Kf7 {[%emt 0:00:33]} 31. Kg3 {[%emt 0:00:08]} Kg6 {[%emt 0:01:09]} 32. Kg4 {[%emt 0:04:34]} Ra7 {[%emt 0:01:06]} 33. f5+ {[%emt 0:01:28]} Kf7 {[%emt 0:00:18]} 34. h4 {[%emt 0:04:45]} Ra8 {[%emt 0:00:32]} 35. Kg5 {[%emt 0:00:59]} Ra7 {[%emt 0:06:13]} 36. h5 {[%emt 0:02:15]} h6+ {[%emt 0:00:39]} 37. Kf4 {[%emt 0:00:22]} Ke7 {[%emt 0:01:08]} 38. e4 {[%emt 0:01:17]} dxe4 {[%emt 0:04:20]} 39. Kxe4 {[%emt 0:00:07]} Ra8 {[%emt 0:00:59]} 40. Kd4 {[%emt 0:00:00]} Kd7 {[%emt 0:00:00]} 41. Kc5 {[%emt 0:02:40]} Kc7 {[%emt 0:03:15]} 42. Rg3 {[%emt 0:02:36]} Rd8 {[%emt 0:02:11]} 43. Rxg7+ {[%emt 0:02:19]} Kb8 {[%emt 0:02:45]} 44. Kxc6 {[%emt 0:03:57]} Rc8+ {[%emt 0:00:17]} 45. Kb6 {[%emt 0:01:04]} Re8 {[%emt 0:01:01]} 46. e6 {[%emt 0:00:29]} a3 {[%emt 0:00:29]} 47. Ra7 {[%emt 0:01:09]} Rf8 {[%emt 0:00:19]} 48. Rxa3 {[%emt 0:00:20]} Rxf5 {[%emt 0:00:07]} 49. Re3 {[%emt 0:00:13]} Rf6 {[%emt 0:00:43]} 50. Kc6 {[%emt 0:00:09]} Kc8 {[%emt 0:00:08]} 51. b5 {[%emt 0:00:05]} Kd8 {[%emt 0:00:45]} 52. b6 {[%emt 0:00:10]} Ke7 {[%emt 0:00:28]} 53. b7 {[%emt 0:00:12]} Rf8 {[%emt 0:00:28]} 54. Kc7 {[%emt 0:00:12]} 1-0

[Event "Polish Youth G18 Championship 2023"]
[Site "Jastrzebia Gora"]
[Date "2023.03.16"]
[Round "6.20"]
[White "Lopusiewicz, Marta"]
[Black "Nagly, Malgorzata"]
[Result "1-0"]
[ECO "D30"]
[WhiteElo "1180"]
[BlackElo "1041"]
[Annotator "NA RC COMBH"]
[PlyCount "82"]
[EventDate "2023.03.11"]
[EventType "swiss"]
[EventCountry "POL"]
[SourceTitle "playchess.com"]
[Source "ChessBase"]
[SourceQuality "1"]
[TimeControl "40/5400+30:1800+30"]

1. d4 {[%emt 0:00:02]} d5 {[%emt 0:00:01]} 2. c4 {[%emt 0:00:05]} e6 {[%emt 0:00:08]} 3. Nf3 {[%emt 0:00:39]} c6 {[%emt 0:00:29]} 4. e3 {[%emt 0:00:46]} Bd6 {[%emt 0:01:06]} 5. Bd3 {[%emt 0:00:48]} f5 {[%emt 0:01:40]} 6. cxd5 {[%emt 0:02:22]} cxd5 {[%emt 0:00:18]} 7. Nc3 {[%emt 0:00:14]} Nf6 {[%emt 0:01:37]} 8. O-O {[%emt 0:01:00]} O-O {[%emt 0:00:37]} 9. Nb5 {[%emt 0:00:55]} Be7 {[%emt 0:04:08]} 10. Bd2 {[%emt 0:04:06]} a6 {[%emt 0:02:48]} 11. Nc3 {[%emt 0:00:09]} Ne4 {[%emt 0:02:00]} 12. Ne5 {[%emt 0:03:13]} Nd7 {[%emt 0:07:45]} 13. f4 {[%emt 0:02:20]} Rf6 {[%emt 0:15:35]} 14. Bxe4 {[%emt 0:15:00]} dxe4 {[%emt 0:02:00]} 15. Qb3 {[%emt 0:11:06]} Rh6 {[%emt 0:12:51]} 16. Rfd1 {[%emt 0:06:21]} Nxe5 {[%emt 0:09:31]} 17. dxe5 {[%emt 0:00:08]} Bc5 {[%emt 0:03:25]} 18. Na4 {[%emt 0:02:06]} Ba7 {[%emt 0:09:21]} 19. Be1 {[%emt 0:14:31]} Qe8 {[%emt 0:04:10]} 20. Nb6 {[%emt 0:05:30]} Bxb6 {[%emt 0:09:26]} 21. Qxb6 {[%emt 0:00:07]} Qc6 {[%emt 0:00:07]} 22. Rd8+ {[%emt 0:02:56]} Kf7 {[%emt 0:00:01]} 23. Ba5 {[%emt 0:01:25]} Qxb6 {[%emt 0:08:02]} 24. Bxb6 {[%emt 0:00:07]} a5 {[%emt 0:00:03]} 25. Rc1 {[%emt 0:00:40]} Ra6 {[%emt 0:00:14]} 26. Bd4 {[%emt 0:00:15]} Kg6 {[%emt 0:05:00]} 27. Rdxc8 {[%emt 0:00:17]} Kh5 {[%emt 0:00:20]} 28. Rb8 {[%emt 0:00:57]} g5 {[%emt 0:00:53]} 29. Rxb7 {[%emt 0:00:43]} Rg6 {[%emt 0:00:32]} 30. Rxh7+ {[%emt 0:00:33]} Rh6 {[%emt 0:00:38]} 31. Rxh6+ {[%emt 0:00:17]} Kxh6 {[%emt 0:00:04]} 32. h3 {[%emt 0:00:29]} Ra8 {[%emt 0:00:12]} 33. Rc6 {[%emt 0:00:19]} Re8 {[%emt 0:00:14]} 34. Ra6 {[%emt 0:00:15]} Kh5 {[%emt 0:00:46]} 35. Rxa5 {[%emt 0:00:17]} Rc8 {[%emt 0:00:20]} 36. Rc5 {[%emt 0:00:08]} Ra8 {[%emt 0:00:09]} 37. a3 {[%emt 0:00:10]} g4 {[%emt 0:01:04]} 38. hxg4+ {[%emt 0:00:10]} Kxg4 {[%emt 0:00:09]} 39. Kf2 {[%emt 0:00:10]} Rh8 {[%emt 0:00:21]} 40. Rc6 {[%emt 0:00:00]} Rh6 {[%emt 0:00:00]} 41. a4 {[%emt 0:00:48]} Rh8 1-0